bitfinex-derivatives/quotes_BNBF0:USTF0_20250329
["timestamp","ask_amount","ask_price","bid_price","bid_amount"]
[1743239912448,6.58468894,606.71,606.67,1.23350027]
[1743239912648,6.58468894,606.7,606.67,1.23350027]
[1743239912847,6.58468894,606.69,606.67,1.23350027]
[1743239913044,6.09037805,606.68,606.67,1.23350027]
[1743239913646,8.90906364,606.68,606.67,1.53234605]
[1743239914952,8.90906364,606.68,606.67,0.29884578]
[1743239915551,7.36024701,606.68,606.67,0.29884578]
[1743239916350,5.16113868,606.68,606.67,0.29884578]
[1743239917052,3.42656293,606.68,606.67,0.29884578]
[1743239917451,3.42656293,606.68,606.65,0.29884578]
[1743239917747,2.34245309,606.67,606.65,0.29884578]
[1743239918053,2.34245309,606.66,606.65,0.29884578]
[1743239918253,1.3744427,606.66,606.65,0.29884578]
[1743239918552,3.42652443,606.66,606.65,0.29884578]
[1743239918753,3.42652443,606.66,606.65,0.29884571]
[1743239919247,2.05208173,606.66,606.65,0.29884571]
[1743239919453,3.42643248,606.66,606.65,0.29884571]
[1743239920853,2.05208173,606.66,606.65,0.29884571]
[1743239921246,2.05208173,606.66,606.54,0.29884571]
[1743239921449,0.96797189,606.65,606.55,0.32973374]
[1743239921648,0.97838901,606.91,606.56,0.29884571]
[1743239921849,7.24292697,606.9,606.56,0.29884571]
[1743239922046,7.24292697,606.89,606.56,0.29884571]
[1743239922247,7.24292697,606.88,606.57,0.32972286]
[1743239922552,4.12276018,608.06,606.57,0.32972286]
[1743239922553,7.24292697,606.87,606.64,1.23270193]
[1743239922752,6.58388355,606.86,606.65,0.62852509]
[1743239922952,6.08960098,606.85,606.66,0.29884571]
[1743239923155,3.89067886,606.84,606.66,0.29884571]
[1743239923348,6.08965258,606.83,606.67,0.32966851]
[1743239923547,6.08967481,606.82,606.68,0.29884571]
[1743239923747,6.08967481,606.81,606.68,0.29884571]
[1743239923954,3.89070109,606.8,606.68,0.29884571]
[1743239924255,3.89070109,606.79,606.68,0.29884571]
[1743239924455,2.34214315,606.78,606.68,0.62850879]
[1743239924753,2.81825059,606.81,606.68,0.62850879]
[1743239924754,2.34214315,606.77,606.69,0.29884571]
[1743239924953,2.34214315,606.76,606.69,0.29884571]
[1743239925148,0.96783482,606.75,606.69,0.29884571]
[1743239925349,1.08394253,606.77,606.69,0.29884571]
[1743239925350,0.96783482,606.74,606.69,0.29884571]
[1743239925549,0.96783482,606.73,606.7,0.29877002]
[1743239925753,0.96783482,606.72,606.69,0.29877002]
[1743239925956,1.08394253,606.74,606.7,0.29877002]
[1743239926254,0.96769638,606.73,606.71,0.29877002]
[1743239926455,0.97838901,607.0,606.69,0.29877002]
[1743239926655,7.24079558,606.99,606.7,0.29877002]
[1743239926855,7.24079558,606.98,606.71,0.29877002]
[1743239927048,7.24079558,606.97,606.69,0.29877002]
[1743239927250,7.24079558,606.96,606.7,0.29877002]
[1743239927452,7.24079558,606.95,606.68,0.32966308]
[1743239927655,7.24079558,606.94,606.69,0.29877188]
[1743239927852,6.74661924,606.93,606.69,0.29877188]
[1743239928053,5.69274787,606.92,606.69,0.29877188]
[1743239928355,7.24079558,606.91,606.69,0.29877188]
[1743239928654,7.24079558,606.9,606.7,1.23057075]
[1743239928854,7.24079558,606.89,606.71,0.29877188]
[1743239929049,6.58189379,606.88,606.71,0.29877188]
[1743239929249,6.58189379,606.87,606.72,0.29877465]
[1743239929451,6.58189379,606.86,606.73,0.29877465]
[1743239929655,6.08771745,606.85,606.71,0.29877465]
[1743239929856,6.08771745,606.84,606.71,0.29877465]
[1743239930157,3.8894775,606.83,606.71,0.29877465]
[1743239930358,3.88701479,606.82,606.71,0.29877465]
[1743239930552,3.88701479,606.81,606.71,0.29877465]
[1743239930754,2.34048259,606.8,606.71,0.29877465]
[1743239930952,0.96658262,606.79,606.72,0.2987744]
[1743239931257,0.96658262,606.78,606.73,0.2987744]
[1743239931457,0.96658262,606.77,606.71,0.2987744]
[1743239931653,0.97692924,607.03,606.72,0.2987744]
[1743239931852,7.23455942,607.02,606.71,0.2987744]
[1743239932153,7.23455942,607.02,606.68,0.32966308]
[1743239932154,7.23455942,607.01,606.72,0.2987744]
[1743239932355,7.23432056,607.0,606.73,0.2987744]
[1743239932552,7.23432056,606.99,606.74,0.29877285]
[1743239932758,7.23432056,606.98,606.69,0.29877285]
[1743239933063,10.70753855,606.97,606.7,0.29877285]
[1743239933258,7.23432056,606.96,606.69,0.29877285]
[1743239933454,7.23432056,606.96,606.68,1.56023383]
[1743239933455,6.57540806,606.95,606.7,0.29877285]
[1743239933652,6.57540806,606.94,606.71,0.29877285]
[1743239933859,6.57540806,606.93,606.72,0.29877285]
[1743239934053,6.08123015,606.92,606.72,0.29877285]
[1743239934258,6.08123015,606.91,606.73,0.2987688]
[1743239934456,6.08063792,606.9,606.69,0.2987688]
[1743239934651,3.88465726,606.89,606.69,0.2987688]
[1743239934857,3.88465726,606.88,606.69,0.2987688]
[1743239935059,3.88465726,606.87,606.69,0.2987688]
[1743239935252,2.33870689,606.86,606.69,0.2987688]
[1743239935452,2.33870689,606.85,606.69,0.2987688]
[1743239935757,2.33870689,606.84,606.69,0.2987688]
[1743239935951,2.33870689,606.83,606.68,1.56023383]
[1743239936160,0.96621898,606.82,606.69,0.29876784]
[1743239936360,0.96621898,606.81,606.69,0.29876784]
[1743239936558,1.0824285,606.83,606.69,0.29876784]
[1743239936760,0.96604422,606.82,606.69,0.29876784]
[1743239937059,0.96604422,606.81,606.69,0.29876784]
[1743239937259,0.96604422,606.8,606.69,0.29876784]
[1743239937459,0.97656005,607.09,606.69,0.29876784]
[1743239937655,7.23073565,607.08,606.69,0.29876784]
[1743239937853,7.23073565,607.07,606.7,0.29877033]
[1743239938061,10.7021804,607.06,606.69,0.29877033]
[1743239938260,7.23073565,607.05,606.7,0.29877033]
[1743239938459,7.23073565,607.04,606.7,0.29877033]
[1743239938661,7.23073565,607.03,606.7,0.29877033]
[1743239938855,7.23073565,607.02,606.7,0.29877033]
[1743239939057,7.23073565,607.01,606.7,0.29877033]
[1743239939255,10.7021804,607.0,606.7,0.29877033]
[1743239939460,7.23073565,606.99,606.7,0.29877033]
[1743239939661,7.23073565,606.98,606.7,0.29877033]
[1743239939862,7.23073565,606.97,606.7,0.29877033]
[1743239940063,7.23073565,606.96,606.7,0.29877033]
[1743239940261,6.5718337,606.95,606.7,0.29877033]
[1743239940459,6.57126599,606.94,606.7,0.29877033]
[1743239940660,6.57126599,606.93,606.7,0.29877033]
[1743239940860,6.57126599,606.92,606.7,0.29877033]
[1743239941060,6.07708277,606.91,606.7,0.29877033]
[1743239941363,6.07708277,606.9,606.7,0.29877033]
[1743239941558,6.07708277,606.89,606.7,0.29877033]
[1743239941759,6.07708277,606.88,606.7,0.29877033]
[1743239941955,6.57047698,606.87,606.7,0.29877033]
[1743239942161,6.57047698,606.86,606.7,0.29877033]
[1743239942358,6.07625194,606.85,606.69,1.23057075]
[1743239942562,6.07625194,606.84,606.69,1.23057075]
[1743239942861,6.07625194,606.83,606.69,1.23057075]
[1743239943159,6.07625194,606.83,606.68,0.32966308]
[1743239943160,6.07625194,606.82,606.68,0.32966308]
[1743239943362,6.07625194,606.81,606.68,0.32966308]
[1743239943558,6.07603084,606.8,606.68,0.32966308]
[1743239943760,6.07603084,606.79,606.68,0.32966308]
[1743239943960,6.07603084,606.78,606.68,0.32966308]
[1743239944162,6.07603084,606.77,606.68,0.32966308]
[1743239944358,6.07603084,606.76,606.68,0.32966308]
[1743239944564,6.07603084,606.75,606.68,0.32966308]
[1743239944761,3.88215348,606.74,606.68,0.32966308]
[1743239944962,3.88215348,606.73,606.68,0.32966308]
[1743239945162,3.88215348,606.72,606.68,0.32966308]
[1743239945360,3.88215348,606.71,606.68,0.32966308]
[1743239945562,2.33701997,606.7,606.68,0.32966308]
[1743239945765,0.96570844,606.69,606.68,0.32966308]
[1743239945961,0.96530168,606.69,606.68,0.32966308]
[1743239946463,2.04704891,606.69,606.68,0.32966308]
[1743239949071,3.41807791,606.69,606.68,0.32966308]
[1743239949770,2.04704891,606.69,606.68,0.32966308]
[1743239950075,3.41809184,606.69,606.68,0.32966308]
[1743239951176,4.9629136,606.69,606.68,0.32966308]
[1743239951377,3.41809184,606.69,606.68,0.32966308]
[1743239953080,4.96350468,606.69,606.68,0.32966308]
[1743239953277,4.96405796,606.69,606.68,0.32966308]
[1743239953681,6.69485749,606.69,606.68,0.32966308]
[1743239953981,8.88930924,606.69,606.68,0.32966308]
[1743239954578,9.38367014,606.69,606.68,0.32966308]
[1743239954881,10.04286815,606.69,606.68,0.32966308]
[1743239955081,10.04286815,606.69,606.47,1.435]
[1743239955283,7.23032139,606.68,606.48,0.29891355]
[1743239955477,7.23032139,606.67,606.48,0.29891355]
[1743239955682,6.57112338,606.66,606.48,0.29891355]
[1743239955982,6.57112338,606.65,606.48,0.29891355]
[1743239956182,6.57112338,606.64,606.36,0.29891355]
[1743239956379,6.07676248,606.63,606.49,0.29891355]
[1743239956583,6.57118512,606.62,606.32,1.23057075]
[1743239956882,6.57118512,606.61,606.37,1.23057075]
[1743239957087,6.07676248,606.6,606.38,0.29892529]
[1743239957279,6.07676248,606.59,606.38,0.29892529]
[1743239957485,6.07676248,606.58,606.38,0.29892529]
[1743239957685,6.07676248,606.57,606.38,0.29892529]
[1743239957884,3.88231073,606.56,606.37,1.23057075]
[1743239958085,3.88231073,606.55,606.39,0.29893198]
[1743239958284,3.88231073,606.54,606.38,0.29893198]
[1743239958485,2.33691516,606.53,606.39,0.29893198]
[1743239958685,2.33691516,606.52,606.38,0.29893198]
[1743239958980,2.33691516,606.51,606.38,0.29893198]
[1743239959186,2.33691516,606.5,606.38,0.29893198]
[1743239959382,2.33691516,606.49,606.35,0.3298425]
[1743239959583,2.33691516,606.48,606.35,0.3298425]
[1743239959786,1.08174723,606.5,606.35,0.3298425]
[1743239959787,2.33691516,606.47,606.35,0.3298425]
[1743239959984,2.33691516,606.46,606.35,0.3298425]
[1743239960185,2.33691516,606.45,606.35,0.3298425]
[1743239960386,2.33691516,606.44,606.35,0.3298425]
[1743239960586,0.96587223,606.43,606.35,0.3298425]
[1743239960786,0.96587223,606.42,606.35,0.3298425]
[1743239960987,0.96587223,606.41,606.35,0.3298425]
[1743239961190,1.08174723,606.43,606.35,0.3298425]
[1743239961388,0.96471974,606.42,606.35,0.3298425]
[1743239961683,0.96471974,606.41,606.35,0.3298425]
[1743239961889,1.08174723,606.42,606.35,0.3298425]
[1743239962389,2.8946762,608.09,606.35,0.3298425]
[1743239962390,2.60896832,606.79,606.35,0.3298425]
[1743239962689,7.22280638,606.78,606.35,0.3298425]
[1743239962893,7.22280638,606.77,606.35,0.3298425]
[1743239963083,7.22280638,606.76,606.36,0.29894632]
[1743239963288,7.22280638,606.75,606.36,0.29894632]
[1743239963487,7.22280638,606.74,606.36,0.29894632]
[1743239963684,10.69091801,606.73,606.36,0.29894632]
[1743239963888,7.22280638,606.72,606.36,0.29894632]
[1743239964087,7.22280638,606.71,606.36,0.29894632]
[1743239964287,10.0316271,606.7,606.36,0.29894632]
[1743239964490,7.22280638,606.69,606.36,0.29894632]
[1743239964792,6.56351461,606.68,606.36,0.29894632]
[1743239964994,6.56351461,606.67,606.35,0.3298425]
[1743239965291,6.56351461,606.66,606.35,0.3298425]
[1743239965492,6.06904578,606.65,606.35,0.3298425]
[1743239965691,6.06904578,606.64,606.35,0.3298425]
[1743239965888,6.06738456,606.63,606.35,0.3298425]
[1743239966192,6.06738456,606.62,606.35,0.3298425]
[1743239966393,6.06738456,606.61,606.35,0.3298425]
[1743239966593,6.06738456,606.6,606.35,0.3298425]
[1743239966791,6.06738456,606.59,606.35,0.3298425]
[1743239966987,3.87693391,606.58,606.35,0.3298425]
[1743239967296,3.87693391,606.57,606.35,0.3298425]
[1743239967486,3.87693391,606.56,606.35,0.3298425]
[1743239967693,2.33360944,606.55,606.35,0.3298425]
[1743239967988,0.96457779,606.54,606.35,0.3298425]
[1743239968189,0.96457779,606.53,606.35,0.3298425]
[1743239968389,0.96457779,606.52,606.35,0.3298425]
[1743239968591,1.08031566,606.53,606.35,0.3298425]
[1743239968789,0.96343439,606.52,606.35,0.3298425]
[1743239968993,1.08031566,606.53,606.35,0.3298425]
[1743239969189,1.08031566,606.52,606.35,0.3298425]
[1743239969995,0.65928852,606.8,606.35,0.3298425]
[1743239970194,7.21489487,606.79,606.35,0.3298425]
[1743239970491,7.21489487,606.78,606.35,0.3298425]
[1743239970691,10.67892838,606.77,606.35,0.3298425]
[1743239970996,10.01963986,606.76,606.35,0.3298425]
[1743239971197,6.55560635,606.75,606.35,0.3298425]
[1743239971394,6.55560635,606.74,606.35,0.3298425]
[1743239971595,6.06114639,606.73,606.35,0.3298425]
[1743239971897,6.05977713,606.72,606.35,0.3298425]
[1743239972196,3.46403351,606.74,606.35,0.3298425]
[1743239972197,6.05977713,606.71,606.35,0.3298425]
[1743239972498,6.05977713,606.7,606.35,0.3298425]
[1743239972691,3.87165026,606.69,606.36,0.29892055]
[1743239972892,0.96310422,606.68,606.36,0.29892055]
[1743239973092,2.80474444,606.71,606.36,0.29892055]
[1743239973290,1.07874786,606.68,606.37,0.62875217]
[1743239973592,1.07874786,606.68,606.38,0.62874673]
[1743239973794,1.07874786,606.68,606.39,0.62874129]
[1743239973998,1.6326728,606.98,606.39,0.62874129]
[1743239974297,6.55670732,606.97,606.4,0.29892055]
[1743239974497,6.55670732,606.96,606.4,0.29892055]
[1743239974692,1.6326728,606.98,606.4,0.29892055]
[1743239974693,6.5567066,606.95,606.4,0.29892055]
[1743239974897,6.06247246,606.94,606.4,0.29892055]
[1743239975097,6.06247246,606.93,606.53,1.23057075]
[1743239975296,6.06247246,606.92,606.54,0.62865972]
[1743239975493,3.87335328,606.91,606.55,0.62865429]
[1743239975797,3.87335328,606.9,606.56,0.62864885]
[1743239975993,3.87335328,606.89,606.57,0.29892055]
[1743239976195,6.06172119,606.88,606.57,0.62864341]
[1743239976498,6.06172119,606.88,606.53,1.23057075]
[1743239976499,6.06172119,606.87,606.58,0.62863798]
[1743239976698,6.06172119,606.86,606.59,0.62863254]
[1743239976898,3.87301496,606.85,606.6,0.29892055]
[1743239977098,3.87301496,606.84,606.59,0.32971199]
[1743239977299,3.87301496,606.83,606.6,0.29880893]
[1743239977500,2.33172017,606.82,606.6,0.29880893]
[1743239977700,0.96352069,606.81,606.6,0.29880893]
[1743239978002,3.4096521,606.8,606.6,0.29880893]
[1743239978200,2.33062823,606.79,606.6,0.29880893]
[1743239978396,0.96306975,606.78,606.6,0.29880893]
[1743239978601,0.96306975,606.77,606.6,0.29880893]
[1743239978794,0.96306975,606.76,606.6,0.29880893]
[1743239978996,0.96306975,606.75,606.6,0.29880893]
[1743239979195,1.07902387,606.77,606.6,0.29880893]
[1743239979396,0.96301435,606.76,606.6,0.29880893]
[1743239979601,0.96301435,606.75,606.6,0.29880893]
[1743239979902,0.97340552,607.03,606.6,0.29880893]
[1743239980204,7.21258991,607.02,606.6,0.29880893]
[1743239980403,7.21258991,607.01,606.59,0.32971199]
[1743239980602,7.21258991,607.0,606.6,0.2988093]
[1743239980801,7.21258991,606.99,606.6,0.2988093]
[1743239981000,7.21258991,606.98,606.6,0.2988093]
[1743239981203,7.21258991,606.97,606.6,0.2988093]
[1743239981496,7.21258991,606.96,606.6,0.2988093]
[1743239981703,3.46297678,606.98,606.6,0.2988093]
[1743239981704,6.55359704,606.95,606.6,0.2988093]
[1743239981901,6.55359704,606.94,606.6,0.2988093]
[1743239982102,6.55359704,606.93,606.6,0.2988093]
[1743239982397,6.05935239,606.92,606.6,0.2988093]
[1743239982599,6.05935239,606.91,606.6,0.2988093]
[1743239982802,6.05935239,606.9,606.6,0.2988093]
[1743239983103,6.05935239,606.89,606.6,0.2988093]
[1743239983299,3.87138223,606.88,606.6,0.2988093]
[1743239983501,3.87138223,606.87,606.6,0.2988093]
[1743239983702,3.87138223,606.86,606.6,0.2988093]
[1743239983904,3.87138223,606.85,606.6,0.2988093]
[1743239984104,3.87104527,606.84,606.6,0.2988093]
[1743239984406,3.87104527,606.83,606.6,0.2988093]
[1743239984602,2.33052015,606.82,606.6,0.2988093]
[1743239984802,2.33052015,606.81,606.6,0.2988093]
[1743239985101,2.33052015,606.8,606.6,0.2988093]
[1743239985304,6.05852847,606.79,606.59,0.32971199]
[1743239985505,3.87110106,606.78,606.59,0.32971199]
[1743239985705,3.87110106,606.77,606.59,0.32971199]
[1743239985902,6.67474773,606.76,606.59,0.32971199]
[1743239986103,3.87094428,606.75,606.59,0.32971199]
[1743239986302,2.33052015,606.74,606.59,0.32971199]
[1743239986503,3.8710481,606.73,606.59,0.32971199]
[1743239986703,2.33052015,606.72,606.59,0.32971199]
[1743239987007,2.33052015,606.71,606.59,0.32971199]
[1743239987207,2.33052015,606.7,606.59,0.32971199]
[1743239987405,3.40897343,606.69,606.59,0.32971199]
[1743239987607,2.33052015,606.68,606.59,0.32971199]
[1743239987808,2.33035934,606.67,606.59,0.32971199]
[1743239988104,3.40881262,606.66,606.59,0.32971199]
[1743239988307,2.33035934,606.65,606.59,0.32971199]
[1743239988508,0.96287799,606.64,606.59,0.32971199]
[1743239988704,0.96287799,606.63,606.59,0.32971199]
[1743239988904,0.96287799,606.62,606.59,0.32971199]
[1743239989107,0.96287799,606.61,606.59,0.32971199]
[1743239989301,0.97326601,606.94,606.59,0.32971199]
[1743239989608,7.21276086,606.93,606.59,0.32971199]
[1743239989806,7.21272521,606.92,606.59,0.32971199]
[1743239990006,7.21272521,606.91,606.59,0.32971199]
[1743239990206,7.21272521,606.9,606.59,0.32971199]
[1743239990410,7.21272521,606.89,606.59,0.32971199]
[1743239990605,7.21272521,606.88,606.59,0.32971199]
[1743239990808,7.21272521,606.87,606.59,0.32971199]
[1743239991110,7.21272521,606.86,606.59,0.32971199]
[1743239991411,7.21272521,606.85,606.59,0.32971199]
[1743239991612,7.21272521,606.84,606.59,0.32971199]
[1743239991911,7.21272521,606.83,606.59,0.32971199]
[1743239992106,3.46327712,606.85,606.59,0.32971199]
[1743239992310,7.21394229,606.84,606.59,0.32971199]
[1743239992512,7.21394229,606.83,606.59,0.32971199]
[1743239992710,7.21394229,606.82,606.59,0.32971199]
[1743239993012,7.21437825,606.81,606.59,0.32971199]
[1743239993310,7.21437825,606.8,606.59,0.32971199]
[1743239993611,7.21437825,606.79,606.59,0.32971199]
[1743239993911,7.21437825,606.78,606.59,0.32971199]
[1743239994105,7.21437825,606.77,606.59,0.32971199]
[1743239994306,7.21437825,606.76,606.59,0.32971199]
[1743239994510,7.21437825,606.75,606.59,0.32971199]
[1743239994706,7.21437825,606.74,606.59,0.32971199]
[1743239994911,6.55521434,606.73,606.59,0.32971199]
[1743239995108,6.55521434,606.72,606.59,0.32971199]
[1743239995310,6.55521434,606.71,606.59,0.32971199]
[1743239995513,9.35934138,606.7,606.59,0.32971199]
[1743239995812,6.06084647,606.69,606.59,0.32971199]
[1743239996112,6.06084647,606.68,606.59,0.32971199]
[1743239996314,2.50475967,606.67,606.59,0.32971199]
[1743239996509,7.21709162,606.66,606.59,0.32971199]
[1743239996709,6.55785811,606.65,606.59,0.32971199]
[1743239996909,6.55785811,606.64,606.59,0.32971199]
[1743239997112,6.55785811,606.63,606.59,0.32971199]
[1743239997312,6.55785811,606.62,606.59,0.32971199]
[1743239997611,2.80412704,606.63,606.59,0.32971199]
[1743239997612,6.0634599,606.61,606.59,0.32971199]
[1743239997812,6.0634599,606.6,606.59,0.32971199]
[1743239998016,8.86758694,606.6,606.59,0.32971199]
[1743239998715,9.36205958,606.6,606.59,0.32971199]
[1743239998914,9.36205958,606.6,606.49,1.381]
[1743239999114,6.55793254,606.59,606.49,1.381]
[1743239999315,6.55793254,606.58,606.49,1.381]
[1743239999510,6.0634599,606.57,606.49,1.381]
[1743239999710,6.0634599,606.56,606.49,1.381]
[1743240000011,6.06545848,606.55,606.49,1.381]
[1743240000311,6.06545848,606.54,606.49,1.381]
[1743240000519,3.87548911,606.53,606.49,1.381]
[1743240000718,3.87548911,606.52,606.49,1.381]
[1743240000917,3.87548911,606.51,606.49,1.381]
[1743240001117,2.33286865,606.5,606.49,1.381]
[1743240001319,3.87578454,606.5,606.49,1.381]
[1743240001617,3.87578454,606.5,606.23,1.23057075]
[1743240001818,2.33286865,606.49,606.23,1.23057075]
[1743240002016,2.33286865,606.48,606.23,1.23057075]
[1743240002217,2.33286865,606.47,606.23,1.23057075]
[1743240002520,2.33286865,606.46,606.23,1.23057075]
[1743240002712,0.96413779,606.45,606.23,1.23057075]
[1743240002915,0.96413779,606.45,606.15,0.2869263]
[1743240002916,2.04264819,606.44,606.39,0.29894969]
[1743240003219,0.96413779,606.43,606.39,0.29894969]
[1743240003411,0.96413779,606.42,606.39,0.29894969]
[1743240003615,0.96413779,606.41,606.39,0.29894969]
[1743240003816,1.0785104,606.43,606.39,0.29894969]
[1743240004117,0.96443158,606.42,606.39,0.29894969]
[1743240004317,0.96443158,606.41,606.15,1.23057075]
[1743240004518,0.97460262,606.71,606.39,0.29895569]
[1743240004818,7.22151958,606.7,606.39,0.29895569]
[1743240005018,7.22151958,606.69,606.39,0.29895569]
[1743240005215,7.22151958,606.68,606.39,0.29895569]
[1743240005411,7.22151958,606.67,606.39,0.29895569]
[1743240005613,7.22151958,606.66,606.39,0.29895569]
[1743240005915,7.22151958,606.65,606.39,0.29895569]
[1743240006117,6.72703941,606.64,606.39,0.29895569]
[1743240006318,6.72703941,606.63,606.39,0.29895569]
[1743240006512,6.06773251,606.62,606.4,0.29895569]
[1743240006713,6.06773251,606.61,606.26,0.29895569]
[1743240006913,3.87673474,606.6,606.27,0.62884171]
[1743240007115,3.87673474,606.59,606.28,0.29895569]
[1743240007312,3.87673474,606.58,606.28,0.29895569]
[1743240007615,3.87673474,606.57,606.28,0.29895569]
[1743240007817,2.33374327,606.56,606.28,0.29895569]
[1743240008016,2.33374327,606.55,606.27,0.32988602]
[1743240008216,2.33374327,606.54,606.28,0.29895258]
[1743240008419,0.96436967,606.53,606.28,0.29895258]
[1743240008621,0.96436967,606.52,606.28,0.29895258]
[1743240008814,0.96436967,606.51,606.28,0.29895258]
[1743240009015,0.96436967,606.5,606.28,0.29895258]
[1743240009215,1.0801076,606.54,606.27,0.32988602]
[1743240009418,0.9644812,606.53,606.28,0.29895095]
[1743240009615,0.9644812,606.52,606.28,0.29895095]
[1743240009814,0.9644812,606.51,606.28,0.29895095]
[1743240010016,0.97494321,606.75,606.37,1.23057075]
[1743240010222,7.22400931,606.74,606.38,0.29895095]
[1743240010422,7.22400931,606.73,606.38,0.29895095]
[1743240010623,7.22400931,606.72,606.38,0.29895095]
[1743240010818,7.22400931,606.71,606.38,0.29895095]
[1743240011018,7.22400931,606.7,606.38,0.29895095]
[1743240011219,7.22400931,606.69,606.38,0.29895095]
[1743240011416,7.22388269,606.68,606.38,0.29895095]
[1743240011623,7.22388269,606.67,606.38,0.29895095]
[1743240011815,7.22388269,606.66,606.38,0.29895095]
[1743240012020,6.56458505,606.65,606.38,0.29895095]
[1743240012218,6.56458505,606.64,606.38,0.29895095]
[1743240012418,3.46870668,606.66,606.38,0.29895095]
[1743240012419,6.07011182,606.63,606.38,0.29895095]
[1743240012618,6.07011182,606.62,606.37,1.23057075]
[1743240012927,2.80940904,606.63,606.43,1.23057075]
[1743240012928,6.07011182,606.61,606.43,1.23057075]
[1743240013125,6.68766336,606.6,606.43,1.23057075]
[1743240013322,2.80940904,606.6,606.43,1.23057075]
[1743240013519,6.72898372,606.59,606.43,1.23057075]
[1743240013718,6.06963867,606.58,606.43,1.23057075]
[1743240013924,6.56414514,606.57,606.43,1.23057075]
[1743240014120,6.56414514,606.56,606.43,1.23057075]
[1743240014325,6.06963867,606.55,606.43,1.23057075]
[1743240014519,6.06963867,606.54,606.43,1.23057075]
[1743240014723,6.06963867,606.53,606.43,1.23057075]
[1743240014920,6.06963867,606.52,606.43,1.23057075]
[1743240015126,6.06963867,606.51,606.43,1.23057075]
[1743240015325,3.87798295,606.5,606.29,1.23057075]
[1743240015528,3.87883902,606.49,606.3,0.2989709]
[1743240015727,3.87883902,606.48,606.3,0.2989709]
[1743240016026,2.33482248,606.47,606.31,0.29896821]
[1743240016222,2.33482248,606.46,606.3,0.29896821]
[1743240016425,0.96501034,606.45,606.32,0.29896821]
[1743240016622,0.96501034,606.44,606.31,0.29896821]
[1743240016823,1.08054194,606.46,606.32,0.29896821]
[1743240017027,1.6326728,606.79,606.3,0.29893321]
[1743240017225,7.22617272,606.78,606.29,1.23057075]
[1743240017428,7.22617272,606.77,606.3,0.29893878]
[1743240017630,7.22617272,606.76,606.28,0.29893878]
[1743240017830,7.22617272,606.75,606.29,0.29893878]
[1743240018026,7.22617272,606.74,606.3,0.29893878]
[1743240018227,6.56690264,606.73,606.31,0.29893878]
[1743240018430,6.56690264,606.72,606.28,0.29893878]
[1743240018632,6.56690264,606.71,606.29,0.29893878]
[1743240018828,6.56690264,606.7,606.28,0.29893878]
[1743240019033,8.88309161,606.69,606.29,0.62881392]
[1743240019229,6.07245009,606.68,606.3,0.62880848]
[1743240019434,6.07244376,606.67,606.31,0.62880304]
[1743240019628,6.07244376,606.66,606.32,0.62877095]
[1743240019831,6.07244376,606.65,606.33,0.62876551]
[1743240020026,6.07244376,606.64,606.34,0.62876007]
[1743240020229,6.07244376,606.63,606.35,0.29891213]
[1743240020435,6.07244376,606.62,606.35,0.29891213]
[1743240020629,3.87974017,606.61,606.35,0.29891213]
[1743240020833,2.33555529,606.6,606.35,0.29891213]
[1743240021035,2.33555529,606.59,606.35,0.29891213]
[1743240021230,2.33534683,606.58,606.35,0.29891213]
[1743240021535,0.96498539,606.57,606.35,0.29891213]
[1743240021737,0.96498539,606.56,606.35,0.29891213]
[1743240022032,0.96498539,606.55,606.35,0.29891213]
[1743240022236,0.97544305,606.87,606.35,0.29891213]
[1743240022436,7.22544153,606.86,606.35,0.29891213]
[1743240022636,7.22544153,606.85,606.35,0.29891213]
[1743240022836,7.22544153,606.84,606.35,0.29891213]
[1743240023037,7.22544153,606.83,606.35,0.29891213]
[1743240023235,7.22544153,606.82,606.35,0.29891213]
[1743240023435,7.22555653,606.81,606.35,0.29891213]
[1743240023635,7.22555653,606.8,606.35,0.29891213]
[1743240023834,7.22555653,606.79,606.35,0.29891213]
[1743240024035,0.97547894,606.87,606.35,0.29891213]
[1743240024036,7.22555653,606.78,606.36,1.309]
[1743240024235,7.22555653,606.77,606.36,1.309]
[1743240024431,7.22555653,606.76,606.36,1.309]
[1743240024631,7.22555653,606.75,606.37,0.29894208]
[1743240024836,7.22555653,606.74,606.37,0.29894208]
[1743240025037,6.56627981,606.73,606.37,1.52951283]
[1743240025339,6.56627981,606.72,606.38,0.29894208]
[1743240025531,6.56627981,606.71,606.38,0.29894208]
[1743240025738,6.56627981,606.7,606.38,0.29894208]
[1743240025939,7.22558265,606.69,606.38,0.29894208]
[1743240026135,7.22558265,606.68,606.38,0.29894208]
[1743240026442,7.22558265,606.67,606.39,0.29896575]
[1743240026635,7.22561468,606.66,606.38,0.29896575]
[1743240026836,7.22561468,606.65,606.39,0.29896575]
[1743240027140,6.56628022,606.64,606.4,0.29896575]
[1743240027342,6.56628022,606.63,606.41,1.23057075]
[1743240027641,6.56628022,606.62,606.42,0.29896575]
[1743240027844,6.07182227,606.61,606.41,1.23057075]
[1743240028040,6.07182227,606.6,606.41,1.23057075]
[1743240028340,3.87934581,606.59,606.41,1.23057075]
[1743240028538,3.87934581,606.58,606.41,1.23057075]
[1743240028738,6.07035793,606.57,606.41,1.23057075]
[1743240028935,6.56380023,606.56,606.41,1.23057075]
[1743240029236,6.06930884,606.55,606.42,0.29894813]
[1743240029435,1.08082377,606.57,606.42,0.29894813]